fUSD/lending_fUSD_20250108
["ID","MTS","AMOUNT","RATE_DAILY","PERIOD"]
[348084238,1736298646777,-500.0,0.00010915,2]
[348084240,1736298646788,-233.65471957,0.00010915,2]
[348084242,1736298646798,-500.0,0.00010915,2]
[348084244,1736298646807,-500.0,0.00010915,2]
[348084246,1736298646816,-500.0,0.00010915,2]
[348084248,1736298646829,-500.0,0.00010915,2]
[348084250,1736298646839,-500.0,0.00010915,2]
[348084252,1736298646849,-500.0,0.00010915,2]
[348084254,1736298646859,-500.0,0.00010915,2]
[348084256,1736298646868,-500.0,0.00010915,2]
[348084258,1736298646878,-500.0,0.00010915,2]
[348084260,1736298646887,-500.0,0.00010915,2]
[348084262,1736298646897,-500.0,0.00010915,2]
[348084263,1736298646907,-500.0,0.00010915,2]
[348084264,1736298646917,-500.0,0.00010915,2]
[348084265,1736298646927,-500.0,0.00010915,2]
[348084266,1736298646936,-337.47621047,0.00010915,2]
[348084267,1736298646946,-500.0,0.00010915,2]
[348084268,1736298646956,-500.0,0.00010915,2]
[348084269,1736298646967,-500.0,0.00010915,2]
[348084270,1736298646977,-294.36332179,0.00010915,2]
[348084271,1736298646986,-500.0,0.00010915,2]
[348084272,1736298646997,-500.0,0.00010915,2]
[348084273,1736298647007,-500.0,0.00010915,2]
[348084274,1736298647017,-500.0,0.00010915,2]
[348084275,1736298647027,-500.0,0.00010915,2]
[348084276,1736298647037,-500.0,0.00010915,2]
[348084278,1736298647047,-500.0,0.00010915,2]
[348084280,1736298647056,-500.0,0.00010915,2]
[348084282,1736298647066,-500.0,0.00010915,2]
[348084284,1736298647075,-500.0,0.00010915,2]
[348084286,1736298647089,-500.0,0.00010915,2]
[348084288,1736298647098,-500.0,0.00010915,2]
[348084290,1736298647108,-158.08742277,0.00010915,2]
[348084292,1736298647117,-500.0,0.00010915,2]
[348084294,1736298647129,-500.0,0.00010915,2]
[348084296,1736298647139,-500.0,0.00010915,2]
[348084298,1736298647148,-500.0,0.00010915,2]
[348084300,1736298647160,-500.0,0.00010915,2]
[348084302,1736298647169,-2340.68,0.00010915,2]
[348084305,1736298647180,-500.0,0.00010915,2]
[348084307,1736298647190,-500.0,0.00010915,2]
[348084309,1736298647200,-500.0,0.00010915,2]
[348084311,1736298647209,-500.0,0.00010915,2]
[348084313,1736298647219,-500.0,0.00010915,2]
[348084315,1736298647228,-500.0,0.00010915,2]
[348084317,1736298647238,-500.0,0.00010915,2]
[348084319,1736298647248,-500.0,0.00010915,2]
[348084321,1736298647257,-500.0,0.00010915,2]
[348084323,1736298647267,-500.0,0.00010915,2]
[348084325,1736298647277,-500.0,0.00010915,2]
[348084327,1736298647287,-500.0,0.00010915,2]
[348084329,1736298647299,-500.0,0.00010915,2]
[348084331,1736298647308,-540.98,0.00010915,2]
[348084333,1736298647318,-1381.17,0.00010915,2]
[348084335,1736298647328,-1650.8,0.00010915,2]
[348084337,1736298647338,-500.0,0.00010915,2]
[348084339,1736298647347,-500.0,0.00010915,2]
[348084340,1736298647357,-183.75171063,0.00010915,2]
[348084342,1736298647367,-500.0,0.00010915,2]
[348084344,1736298647376,-500.0,0.00010915,2]
[348084346,1736298647386,-500.0,0.00010915,2]
[348084349,1736298647397,-500.0,0.00010915,2]
[348084350,1736298647406,-500.0,0.00010915,2]
[348084353,1736298647417,-500.0,0.00010915,2]
[348084355,1736298647428,-554.67,0.00010915,2]
[348084357,1736298647438,-500.0,0.00010915,2]
[348084359,1736298647448,-500.0,0.00010915,2]
[348084361,1736298647458,-500.0,0.00010915,2]
[348084363,1736298647468,-500.0,0.00010915,2]
[348084365,1736298647477,-500.0,0.00010915,2]
[348084367,1736298647487,-500.0,0.00010915,2]
[348084369,1736298647496,-500.0,0.00010915,2]
[348084371,1736298647506,-500.0,0.00010915,2]
[348084373,1736298647515,-298.92,0.00010915,2]
[348084375,1736298647527,-226.04,0.00010915,2]
[348084377,1736298647537,-546.06,0.00010915,2]
[348084379,1736298647547,-559.91200893,0.00010915,2]
[348084381,1736298647559,-500.0,0.00010915,2]
[348084383,1736298647569,-1090.96,0.00010915,2]
[348084385,1736298647579,-500.0,0.00010915,2]
[348084387,1736298647589,-500.0,0.00010915,2]
[348084389,1736298647599,-500.0,0.00010915,2]
[348084391,1736298647608,-500.0,0.00010915,2]
[348084393,1736298647618,-525.6,0.00010915,2]
[348084395,1736298647627,-636.0,0.00010915,2]
[348084397,1736298647637,-642.69762195,0.00010916,2]
[348084399,1736298647646,-500.0,0.00010916,2]
[348084401,1736298647655,-500.0,0.00010916,2]
[348084403,1736298647665,-500.0,0.00010916,2]
[348084405,1736298647675,-500.0,0.00010916,2]
[348084407,1736298647685,-500.0,0.00010916,2]
[348084409,1736298647695,-500.0,0.00010916,2]
[348084411,1736298647704,-500.0,0.00010916,2]
[348084413,1736298647714,-500.0,0.00010916,2]
[348084415,1736298647723,-500.0,0.00010916,2]
[348084417,1736298647732,-500.0,0.00010916,2]
[348084419,1736298647742,-500.0,0.00010916,2]
[348084421,1736298647752,-500.0,0.00010916,2]
[348084423,1736298647761,-500.0,0.00010916,2]
[348084425,1736298647771,-322.96434181,0.00010916,2]
[348084427,1736298647784,-500.0,0.00010916,2]
[348084429,1736298647794,-500.0,0.00010916,2]
[348084431,1736298647803,-568.11,0.00010916,2]
[348084433,1736298647813,-500.86,0.00010916,2]
[348084435,1736298647822,-500.0,0.00010916,2]
[348084437,1736298647832,-500.0,0.00010916,2]
[348084439,1736298647841,-500.0,0.00010916,2]
[348084442,1736298647851,-500.0,0.00010916,2]
[348084444,1736298647860,-500.0,0.00010917,2]
[348084445,1736298647870,-500.0,0.00010917,2]
[348084447,1736298647879,-500.0,0.00010917,2]
[348084449,1736298647889,-500.0,0.00010917,2]
[348084451,1736298647898,-500.0,0.00010917,2]
[348084453,1736298647908,-500.0,0.00010917,2]
[348084455,1736298647918,-500.0,0.00010917,2]
[348084458,1736298647928,-500.0,0.00010917,2]
[348084460,1736298647937,-500.0,0.00010917,2]
[348084462,1736298647946,-594.09,0.00010917,2]
[348084463,1736298647955,-588.03,0.00010917,2]
[348084465,1736298647965,-1029.47,0.00010917,2]
[348084468,1736298647975,-2479.86,0.00010917,2]
[348084470,1736298647984,-1036.31,0.00010918,2]
[348084472,1736298647994,-500.0,0.00010918,2]
[348084474,1736298648003,-611.36,0.00010918,2]
[348084476,1736298648013,-500.0,0.00010918,2]
[348084478,1736298648022,-820.53,0.00010918,2]
[348084480,1736298648033,-509.33,0.00010918,2]
[348084482,1736298648043,-500.0,0.00010918,2]
[348084484,1736298648053,-1249.96,0.00010918,2]
[348084486,1736298648062,-1002.02,0.00010918,2]
[348084488,1736298648072,-3799.63910069,0.00010925,2]
[348084490,1736298648082,-421.84658663,0.00010939,2]
[348084492,1736298648094,-205.40098195,0.00010943,2]
[348084494,1736298648104,-1499.22,0.00010958,2]
[348084496,1736298648113,-182.663868,0.00010959,2]
[348084498,1736298648123,-182.663868,0.00010959,2]
[348084500,1736298648134,-150.0,0.00010959,2]
[348084502,1736298648144,-400.0,0.00010986,2]
[348084504,1736298648154,-550.0,0.00011,2]
[348084526,1736298648347,-3799.63910069,0.00011034,2]
[348084528,1736298648357,-150.0,0.00011047,2]
[348084530,1736298648366,-150.0,0.00011047,2]
[348084532,1736298648376,-150.0,0.00011047,2]
[348084534,1736298648384,-150.0,0.00011047,2]
[348084536,1736298648393,-500.0,0.00011067,2]
[348084538,1736298648402,-500.0,0.00011067,2]
[348084540,1736298648412,-500.0,0.00011067,2]
[348084542,1736298648421,-567.97,0.00011067,2]
[348084544,1736298648430,-500.0,0.00011067,2]
[348084546,1736298648439,-578.65,0.00011067,2]
[348084548,1736298648449,-500.0,0.00011067,2]
[348084550,1736298648458,-2959.13,0.00011067,2]
[348084552,1736298648467,-500.0,0.00011067,2]
[348084554,1736298648477,-678.03,0.00011067,2]
[348084556,1736298648486,-500.0,0.00011067,2]
[348084558,1736298648495,-527.55,0.00011067,2]
[348084560,1736298648504,-877.57,0.00011067,2]
[348084562,1736298648513,-849.24,0.00011067,2]
[348084564,1736298648522,-1597.27,0.00011067,2]
[348084566,1736298648533,-671.28,0.00011067,2]
[348084568,1736298648542,-500.0,0.00011067,2]
[348084570,1736298648552,-666.8,0.00011067,2]
[348084572,1736298648561,-988.95,0.00011067,2]
[348084574,1736298648570,-310.651597,0.00011067,2]
[348084576,1736298648580,-548.96,0.00011067,2]
[348084578,1736298648589,-650.26,0.00011067,2]
[348084580,1736298648598,-782.34,0.00011067,2]
[348084582,1736298648607,-318.316185,0.00011067,2]
[348084584,1736298648618,-690.13,0.00011067,2]
[348084586,1736298648627,-623.13,0.00011067,2]
[348084588,1736298648636,-500.0,0.00011067,2]
[348084590,1736298648646,-500.0,0.00011067,2]
[348084592,1736298648655,-1383.5,0.00011068,2]
[348084595,1736298648664,-1325.86,0.00011068,2]
[348084596,1736298648674,-500.0,0.00011068,2]
[348084598,1736298648683,-598.75,0.00011068,2]
[348084600,1736298648693,-642.77,0.00011068,2]
[348084602,1736298648701,-1169.72,0.00011068,2]
[348084604,1736298648711,-557.55,0.00011068,2]
[348084606,1736298648721,-1606.05,0.00011068,2]
[348084608,1736298648730,-708.74,0.00011068,2]
[348084610,1736298648739,-1043.08,0.00011068,2]
[348084612,1736298648749,-599.09,0.00011068,2]
[348084614,1736298648758,-621.53,0.00011068,2]
[348084616,1736298648768,-500.0,0.00011068,2]
[348084618,1736298648779,-1014.71,0.00011068,2]
[348084620,1736298648789,-536.42,0.00011068,2]
[348084622,1736298648797,-205.40098195,0.00011074,2]
[348084624,1736298648807,-15666.76113012,0.00011099,2]
[348084626,1736298648816,-15666.76113009,0.00011099,2]
[348084628,1736298648826,-15666.76113009,0.00011099,2]
[348084631,1736298648835,-15666.76113009,0.00011099,2]
[348084633,1736298648844,-15666.76113009,0.00011099,2]
[348084634,1736298648854,-182.663868,0.00011099,2]
[348084636,1736298648863,-182.663868,0.00011099,2]
[348084638,1736298648873,-151.0,0.00011099,2]
[348084640,1736298648882,-194.937249,0.00011099,2]
[348084642,1736298648892,-300.0,0.00011119,2]
[348084644,1736298648901,-182.38,0.00011119,2]
[348084646,1736298648911,-3799.63910069,0.00011143,2]
[348084649,1736298648921,-1329.32215215,0.00011167,2]
[348084650,1736298648930,-7833.34557713,0.00011167,2]
[348084652,1736298648940,-9326.42530823,0.00011167,2]
[348084654,1736298648949,-263.003175,0.00011167,2]
[348084656,1736298648958,-1151.27454829,0.00011167,2]
[348084658,1736298648967,-3594.54130271,0.00011167,2]
[348084660,1736298648976,-263.003175,0.00011167,2]
[348084662,1736298648986,-3024.26629971,0.00011167,2]
[348084664,1736298648995,-637.42638404,0.00011168,2]
[348084666,1736298649004,-1797.27065136,0.00011168,2]
[348084668,1736298649013,-200.0,0.00011168,2]
[348084670,1736298649022,-214.30643212,0.00011168,2]
[348084672,1736298649032,-3192.04436476,0.00011168,2]
[348084674,1736298649041,-5425.16761017,0.00011168,2]
[348084676,1736298649050,-1578.54891696,0.00011168,2]
[348084678,1736298649060,-1578.54891696,0.00011168,2]
[348084680,1736298649069,-684.21293805,0.00011169,2]
[348084683,1736298649086,-467.06161024,0.00011169,2]
[348084685,1736298649099,-1797.27065136,0.00011169,2]
[348084687,1736298649108,-235.63030692,0.00011169,2]
[348084689,1736298649119,-255.855,0.00011169,2]
[348084692,1736298649131,-3427.08347967,0.00011169,2]
[348084694,1736298649141,-1089.69,0.00011169,2]
[348084696,1736298649156,-416.90882358,0.00011169,2]
[348084698,1736298649166,-3594.54130271,0.00011169,2]
[348084700,1736298649175,-727.63680566,0.00011169,2]
[348084703,1736298649186,-694.36890622,0.00011169,2]
[348084706,1736298649209,-75.82001167,0.00011169,2]
[348084708,1736298649218,-4152.95808936,0.00011169,2]
[348084710,1736298649231,-3029.84309667,0.00011169,2]
[348084712,1736298649241,-750.12863876,0.0001117,2]
[348084714,1736298649250,-6317.52826478,0.0001117,2]
[348084717,1736298649263,-1515.81731235,0.0001117,2]
[348084719,1736298649272,-5890.78497208,0.0001117,2]
[348084721,1736298649284,-129.82482779,0.0001117,2]
[348084723,1736298649293,-2946.67383816,0.0001117,2]
[348084727,1736298649320,-1112.14,0.0001117,2]
[348084800,1736298650081,-500.0,9.82e-05,2]
[348084802,1736298650091,-500.0,0.00010093,2]
[348084804,1736298650103,-1103.0,0.00010557,2]
[348084806,1736298650112,-12787.61283973,0.0001117,2]
[348084808,1736298650121,-750.12863876,0.0001117,2]
[348084810,1736298650132,-4533.37678263,0.0001117,2]
[348084812,1736298650141,-13010.80146226,0.0001117,2]
[348084814,1736298650150,-5875.22366904,0.0001117,2]
[348084816,1736298650161,-145.38613083,0.0001117,2]
[348084818,1736298650170,-637.42638404,0.0001117,2]
[348084820,1736298650179,-3192.04436476,0.0001117,2]
[348084822,1736298650188,-543.26740987,0.0001117,2]
[348084826,1736298650216,-1756.33641829,0.0001117,2]
[348084828,1736298650227,-1294.93747455,0.0001117,2]
[348084830,1736298650236,-509.40127574,0.00011171,2]
[348084833,1736298650248,-1477.47,0.00011171,2]
[348084835,1736298650258,-392.94026559,0.00011171,2]
[348084837,1736298650276,-828.57594169,0.00011171,2]
[348084839,1736298650286,-1108.67405831,0.00011171,2]
[348084851,1736298650387,-3264.13760739,0.00011171,2]
[348084858,1736298650449,-500.0,0.00010094,2]
[348084860,1736298650458,-476.2,0.00011171,2]
[348084883,1736298650661,-500.0,0.00010092,2]
[348084885,1736298650674,-500.0,0.00010366,2]
[348084887,1736298650683,-554.46,0.00010368,2]
[348084889,1736298650692,-500.0,0.0001064,2]
[348084891,1736298650702,-2333.78952033,0.00011171,2]
[348084893,1736298650711,-770.18891789,0.00011171,2]
[348084895,1736298650720,-858.38315782,0.00011171,2]
[348084897,1736298650729,-3591.40059302,0.00011171,2]
[348084899,1736298650738,-907.83314462,0.00011171,2]
[348084901,1736298650748,-7182.80118603,0.00011171,2]
[348084903,1736298650757,-13010.80146226,0.00011172,2]
[348084905,1736298650767,-2907.71131836,0.00011172,2]
[348084907,1736298650776,-9326.42530823,0.00011172,2]
[348084909,1736298650785,-1797.27065136,0.00011172,2]
[348084911,1736298650794,-6020.60979987,0.00011173,2]
[348084913,1736298650804,-1115.01572003,0.00011173,2]
[348084915,1736298650813,-3591.40059302,0.00011173,2]
[348084917,1736298650823,-652.45904148,0.00011173,2]
[348084919,1736298650832,-2539.66185005,0.00011174,2]
[348084921,1736298650841,-806.84743892,0.00011174,2]
[348084923,1736298650850,-637.42638404,0.00011174,2]
[348084925,1736298650859,-1151.27454829,0.00011174,2]
[348084927,1736298650867,-1578.54891696,0.00011174,2]
[348084929,1736298650876,-3591.40059302,0.00011174,2]
[348084931,1736298650885,-858.38315782,0.00011174,2]
[348084933,1736298650895,-2539.66185005,0.00011174,2]
[348084935,1736298650905,-200.0,0.00011175,2]
[348084937,1736298650914,-3591.40059302,0.00011175,2]
[348084939,1736298650924,-858.38315782,0.00011175,2]
[348084941,1736298650933,-16846.42667789,0.00011175,2]
[348084943,1736298650942,-200.0,0.00011175,2]
[348084945,1736298650951,-388.61065978,0.00011175,2]
[348084949,1736298650981,-393.57954828,0.00010914,2]
[348084951,1736298650993,-106.42045172,0.00010914,2]
[348084953,1736298651002,-951.09860596,0.00011175,2]
[348084954,1736298651013,-199.76222144,0.00011175,2]
[348084956,1736298651022,-172.35214252,0.00011175,2]
[348084963,1736298651116,-500.0,9.971e-05,2]
[348084964,1736298651127,-2367.30970753,0.00011175,2]
[348084965,1736298651136,-6020.60979987,0.00011175,2]
[348084966,1736298651145,-263.003175,0.00011175,2]
[348084967,1736298651156,-214.30643212,0.00011175,2]
[348084968,1736298651166,-806.84743892,0.00011176,2]
[348084969,1736298651177,-5425.16761017,0.00011176,2]
[348084970,1736298651186,-3192.04436476,0.00011176,2]
[348084972,1736298651195,-3208.38748302,0.00011176,2]
[348084973,1736298651204,-2539.66185005,0.00011176,2]
[348084974,1736298651213,-6467.23911835,0.00011176,2]
[348084975,1736298651223,-3024.26629971,0.00011176,2]
[348084976,1736298651232,-263.003175,0.00011176,2]
[348084977,1736298651242,-806.84743892,0.00011177,2]
[348084978,1736298651252,-1151.27454829,0.00011177,2]
[348084979,1736298651262,-200.0,0.00011177,2]
[348084980,1736298651272,-6467.23911835,0.00011177,2]
[348084981,1736298651282,-5391.81195407,0.00011177,2]
[348084982,1736298651292,-750.12863876,0.00011178,2]
[348084983,1736298651301,-5391.81195407,0.00011178,2]
[348084984,1736298651310,-2539.66185005,0.00011178,2]
[348084985,1736298651319,-2539.66185005,0.00011178,2]
[348084986,1736298651328,-1115.01572003,0.00011178,2]
[348084987,1736298651337,-907.83314462,0.00011178,2]
[348084988,1736298651348,-5425.16761017,0.00011178,2]
[348084989,1736298651357,-214.30643212,0.00011178,2]
[348084990,1736298651367,-138273.14935136,0.00011178,2]
[348084991,1736298651376,-9888.66384724,0.00011178,2]
[348084992,1736298651386,-214.30643212,0.00011179,2]
[348084993,1736298651396,-6467.23911835,0.00011179,2]
[348084994,1736298651406,-1151.27454829,0.00011179,2]
[348084995,1736298651415,-7833.34557713,0.00011179,2]
[348084996,1736298651424,-5391.81195407,0.0001118,2]
[348084997,1736298651433,-652.45904148,0.0001118,2]
[348084998,1736298651443,-2907.71131836,0.0001118,2]
[348084999,1736298651452,-263.003175,0.0001118,2]
[348085000,1736298651461,-907.83314462,0.0001118,2]
[348085001,1736298651470,-2907.71131836,0.00011181,2]
[348085002,1736298651479,-727.63680566,0.00011181,2]
[348085003,1736298651488,-3024.26629971,0.00011181,2]
[348085004,1736298651498,-9326.42530823,0.00011181,2]
[348085005,1736298651507,-727.63680566,0.00011181,2]
[348085006,1736298651516,-13010.80146226,0.00011181,2]
[348085007,1736298651525,-1151.27454829,0.00011181,2]
[348085008,1736298651534,-1539.47148718,0.00011181,2]
[348085009,1736298651543,-200.0,0.00011182,2]
[348085010,1736298651725,-2907.71131836,0.00011182,2]
[348085011,1736298651735,-263.003175,0.00011182,2]
[348085012,1736298651745,-1329.32215215,0.00011182,2]
[348085013,1736298651754,-907.83314462,0.00011182,2]
[348085014,1736298651764,-7182.80118603,0.00011183,2]
[348085015,1736298651773,-770.18891789,0.00011183,2]
[348085016,1736298651785,-1329.32215215,0.00011183,2]
[348085017,1736298651794,-16846.42667789,0.00011183,2]
[348085018,1736298651803,-1539.47148718,0.00011183,2]
[348085019,1736298651813,-652.45904148,0.00011184,2]
[348085020,1736298651822,-806.84743892,0.00011184,2]
[348085021,1736298651832,-907.83314462,0.00011184,2]
[348085022,1736298651841,-16846.42667789,0.00011184,2]
[348085023,1736298651851,-214.30643212,0.00011184,2]
[348085024,1736298651860,-13010.80146226,0.00011184,2]
[348085025,1736298651870,-6467.23911835,0.00011184,2]
[348085026,1736298651880,-652.45904148,0.00011184,2]
[348085027,1736298651890,-9888.66384724,0.00011184,2]
[348085029,1736298651899,-7182.80118603,0.00011184,2]
[348085031,1736298651909,-5425.16761017,0.00011184,2]
[348085033,1736298651919,-3208.38748302,0.00011184,2]
[348085035,1736298651928,-3594.54130271,0.00011184,2]
[348085037,1736298651937,-3192.04436476,0.00011185,2]
[348085039,1736298651947,-200.0,0.00011185,2]
[348085041,1736298651956,-6467.23911835,0.00011185,2]
[348085042,1736298651965,-138273.14935136,0.00011185,2]
[348085043,1736298651975,-214.30643212,0.00011185,2]
[348085044,1736298651985,-1539.47148718,0.00011185,2]
[348085045,1736298651994,-200.0,0.00011185,2]
[348085046,1736298652003,-1797.27065136,0.00011186,2]
[348085047,1736298652013,-5391.81195407,0.00011186,2]
[348085048,1736298652022,-806.84743892,0.00011186,2]
[348085049,1736298652032,-12848.87007798,0.00011186,2]
[348085050,1736298652045,-680.04678666,0.00011186,2]
[348085051,1736298652056,-1817.67063,0.00011186,2]
[348085052,1736298652066,-1499.83918325,0.00011186,2]
[348085053,1736298652075,-265.93215625,0.00011187,2]
[348085054,1736298652088,-484.19648251,0.00011187,2]
[348085055,1736298652100,-200.0,0.00011187,2]
[348085056,1736298652110,-1329.32215215,0.00011187,2]
[348085057,1736298652119,-637.42638404,0.00011187,2]
[348085058,1736298652129,-727.63680566,0.00011187,2]
[348085059,1736298652138,-200.0,0.00011187,2]
[348085060,1736298652147,-1797.27065136,0.00011188,2]
[348085061,1736298652156,-200.0,0.00011188,2]
[348085062,1736298652167,-200.0,0.00011188,2]
[348085063,1736298652176,-5120.29003132,0.00011188,2]
[348085064,1736298652187,-74164.38696688,0.00011188,2]
[348085065,1736298652211,-497.5200002,0.00011188,2]
[348085066,1736298652405,-500.0,9.971e-05,2]
[348085067,1736298652415,-58490.95235296,0.00011188,2]
[348085068,1736298652425,-3591.40059302,0.00011188,2]
[348085069,1736298652434,-801.39,0.00011188,2]
[348085070,1736298652444,-1356.0,0.00011188,2]
[348085071,1736298652453,-924.07,0.00011188,2]
[348085072,1736298652463,-500.0,0.00011188,2]
[348085073,1736298652472,-1080.51,0.00011188,2]
[348085074,1736298652482,-500.0,0.00011188,2]
[348085075,1736298652491,-710.69,0.00011188,2]
[348085076,1736298652501,-500.0,0.00011188,2]
[348085077,1736298652511,-500.0,0.00011188,2]
[348085078,1736298652521,-553.37,0.00011188,2]
[348085079,1736298652531,-1339.71,0.00011188,2]
[348085080,1736298652540,-500.0,0.00011188,2]
[348085081,1736298652549,-1539.47148718,0.00011189,2]
[348085082,1736298652559,-1578.54891696,0.00011189,2]
[348085083,1736298652568,-200.0,0.00011189,2]
[348085084,1736298652579,-200.0,0.00011189,2]
[348085085,1736298652588,-1455.614,0.00011189,2]
[348085086,1736298652598,-162.372,0.00011189,2]
[348085087,1736298652607,-500.0,0.00011189,2]
[348085088,1736298652617,-500.0,0.00011189,2]
[348085089,1736298652626,-500.0,0.00011189,2]
[348085090,1736298652636,-500.0,0.00011189,2]
[348085091,1736298652646,-500.0,0.00011189,2]
[348085092,1736298652656,-500.0,0.00011189,2]
[348085093,1736298652666,-500.0,0.00011189,2]
[348085094,1736298652676,-500.0,0.00011189,2]
[348085095,1736298652687,-500.0,0.00011189,2]
[348085096,1736298652698,-500.0,0.00011189,2]
[348085097,1736298652708,-500.0,0.00011189,2]
[348085098,1736298652717,-500.0,0.00011189,2]
[348085099,1736298652727,-500.0,0.00011189,2]
[348085100,1736298652737,-500.0,0.00011189,2]
[348085101,1736298652746,-500.0,0.00011189,2]
[348085102,1736298652756,-500.0,0.00011189,2]
[348085103,1736298652765,-500.0,0.00011189,2]
[348085104,1736298652775,-500.0,0.00011189,2]
[348085105,1736298652787,-500.0,0.00011189,2]
[348085106,1736298652798,-500.0,0.00011189,2]
[348085107,1736298652808,-500.0,0.00011189,2]
[348085108,1736298652817,-500.0,0.00011189,2]
[348085109,1736298652826,-190.9488233,0.00011189,2]
[348085110,1736298652835,-500.0,0.00011189,2]
[348085111,1736298652845,-500.0,0.00011189,2]
[348085112,1736298652854,-500.0,0.00011189,2]
[348085113,1736298652864,-500.0,0.00011189,2]
[348085114,1736298652874,-500.0,0.00011189,2]
[348085115,1736298652883,-500.0,0.00011189,2]
[348085116,1736298652892,-500.0,0.00011189,2]
[348085117,1736298652902,-500.0,0.00011189,2]
[348085118,1736298652911,-500.0,0.00011189,2]
[348085119,1736298652921,-500.0,0.00011189,2]
[348085120,1736298652930,-500.0,0.00011189,2]
[348085121,1736298652940,-500.0,0.00011189,2]
[348085122,1736298652950,-443.81308349,0.00011189,2]
[348085123,1736298652959,-500.0,0.00011189,2]
[348085124,1736298652969,-2340.68,0.00011189,2]
[348085125,1736298652979,-500.0,0.00011189,2]
[348085126,1736298652989,-546.77302986,0.00011189,2]
[348085127,1736298652998,-500.0,0.00011189,2]
[348085128,1736298653007,-500.0,0.00011189,2]
[348085129,1736298653017,-500.0,0.00011189,2]
[348085130,1736298653026,-500.0,0.00011189,2]
[348085131,1736298653036,-500.0,0.00011189,2]
[348085132,1736298653046,-500.0,0.00011189,2]
[348085133,1736298653056,-500.0,0.00011189,2]
[348085134,1736298653065,-500.0,0.00011189,2]
[348085135,1736298653074,-540.98,0.00011189,2]
[348085136,1736298653086,-1381.17,0.00011189,2]
[348085137,1736298653096,-1650.8,0.00011189,2]
[348085138,1736298653105,-500.0,0.00011189,2]
[348085139,1736298653114,-500.0,0.00011189,2]
[348085140,1736298653123,-395.85135333,0.00011189,2]
[348085141,1736298653134,-500.0,0.00011189,2]
[348085142,1736298653143,-500.0,0.00011189,2]
[348085143,1736298653152,-500.0,0.00011189,2]
[348085144,1736298653163,-500.0,0.00011189,2]
[348085145,1736298653172,-500.0,0.00011189,2]
[348085146,1736298653182,-500.0,0.00011189,2]
[348085147,1736298653191,-500.0,0.00011189,2]
[348085148,1736298653201,-500.0,0.00011189,2]
[348085149,1736298653212,-500.0,0.00011189,2]
[348085150,1736298653222,-546.06,0.00011189,2]
[348085151,1736298653231,-458.18965513,0.00011189,2]
[348085152,1736298653241,-1090.96,0.00011189,2]
[348085153,1736298653250,-500.0,0.00011189,2]
[348085154,1736298653259,-500.0,0.00011189,2]
[348085155,1736298653270,-500.0,0.00011189,2]
[348085156,1736298653280,-500.0,0.00011189,2]
[348085157,1736298653289,-525.6,0.00011189,2]
[348085158,1736298653299,-636.0,0.00011189,2]
[348085159,1736298653309,-3192.04436476,0.00011189,2]
[348085160,1736298653318,-6020.60979987,0.0001119,2]
[348085161,1736298653328,-5391.81195407,0.0001119,2]
[348085162,1736298653337,-9326.42530823,0.0001119,2]
[348085163,1736298653347,-3208.38748302,0.0001119,2]
[348085164,1736298653356,-3591.40059302,0.0001119,2]
[348085165,1736298653366,-1329.32215215,0.0001119,2]
[348085166,1736298653375,-500.0,0.0001119,2]
[348085167,1736298653385,-253.32,0.0001119,2]
[348085168,1736298653394,-500.0,0.0001119,2]
[348085169,1736298653404,-500.0,0.0001119,2]
[348085170,1736298653413,-500.0,0.0001119,2]
[348085171,1736298653423,-500.0,0.0001119,2]
[348085172,1736298653432,-500.0,0.0001119,2]
[348085173,1736298653441,-500.0,0.0001119,2]